fUST/lending_fUST_20260506
["ID","MTS","AMOUNT","RATE_DAILY","PERIOD"]
[421651722,1778025048000,-894.66,0.00012328,2]
[421651726,1778025048000,-947.60217728,0.0001235,2]
[421651724,1778025048000,-500.0,0.00012328,2]
[421651718,1778025048000,-500.0,0.00012328,2]
[421651713,1778025048000,-500.0,0.00012328,2]
[421651719,1778025048000,-1721.41,0.00012328,2]
[421651728,1778025048000,-2214.0,0.00012408,2]
[421651720,1778025048000,-500.0,0.00012328,2]
[421651717,1778025048000,-500.0,0.00012328,2]
[421651711,1778025048000,-500.0,0.00012328,2]
[421651712,1778025048000,-500.0,0.00012328,2]
[421651709,1778025048000,-8480.77,0.00012328,2]
[421651721,1778025048000,-500.0,0.00012328,2]
[421651777,1778025049000,-500.0,0.00012602,2]
[421651788,1778025049000,-500.0,0.00012602,2]
[421651786,1778025049000,-276.80832476,0.00012602,2]
[421651779,1778025049000,-500.0,0.00012602,2]
[421651784,1778025049000,-585.88,0.00012602,2]
[421651778,1778025049000,-500.0,0.00012602,2]
[421651782,1778025049000,-1205.89,0.00012602,2]
[421651781,1778025049000,-2297.38,0.00012602,2]
[421651792,1778025049000,-363.21524139,0.00012602,2]
[421651787,1778025049000,-607.92,0.00012602,2]
[421651791,1778025049000,-749.06,0.00012602,2]
[421651803,1778025049000,-546.86,0.00012602,2]
[421651790,1778025049000,-2557.16,0.00012602,2]
[421651801,1778025049000,-500.0,0.00012602,2]
[421651802,1778025049000,-500.0,0.00012602,2]
[421651789,1778025049000,-228.47755471,0.00012602,2]
[421651785,1778025049000,-826.94,0.00012602,2]
[421651783,1778025049000,-714.77,0.00012602,2]
[421651763,1778025049000,-1511.72,0.00012602,2]
[421651776,1778025049000,-728.8,0.00012602,2]
[421651797,1778025049000,-500.0,0.00012602,2]
[421651760,1778025049000,-644.76,0.00012602,2]
[421651761,1778025049000,-500.0,0.00012602,2]
[421651758,1778025049000,-500.0,0.00012602,2]
[421651759,1778025049000,-500.0,0.00012602,2]
[421651775,1778025049000,-500.0,0.00012602,2]
[421651762,1778025049000,-500.0,0.00012602,2]
[421651773,1778025049000,-500.0,0.00012602,2]
[421651765,1778025049000,-500.0,0.00012602,2]
[421651774,1778025049000,-500.0,0.00012602,2]
[421651764,1778025049000,-848.19,0.00012602,2]
[421651766,1778025049000,-500.0,0.00012602,2]
[421651769,1778025049000,-1994.0,0.00012602,2]
[421651767,1778025049000,-584.41,0.00012602,2]
[421651771,1778025049000,-500.0,0.00012602,2]
[421651770,1778025049000,-500.0,0.00012602,2]
[421651772,1778025049000,-500.0,0.00012602,2]
[421651780,1778025049000,-566.16,0.00012602,2]
[421651795,1778025049000,-500.0,0.00012602,2]
[421651768,1778025049000,-500.0,0.00012602,2]
[421651794,1778025049000,-500.0,0.00012602,2]
[421651823,1778025049000,-500.0,0.00012602,2]
[421651825,1778025049000,-550.18,0.00012602,2]
[421651828,1778025049000,-3755.98,0.00012602,2]
[421651838,1778025049000,-695.25010049,0.00012602,2]
[421651829,1778025049000,-500.0,0.00012602,2]
[421651820,1778025049000,-818.83,0.00012602,2]
[421651824,1778025049000,-500.0,0.00012602,2]
[421651826,1778025049000,-500.0,0.00012602,2]
[421651830,1778025049000,-623.19472504,0.00012602,2]
[421651832,1778025049000,-2213.49,0.00012602,2]
[421651831,1778025049000,-4496.68,0.00012602,2]
[421651833,1778025049000,-701.01,0.00012602,2]
[421651834,1778025049000,-500.0,0.00012602,2]
[421651835,1778025049000,-500.0,0.00012602,2]
[421651836,1778025049000,-7818.21,0.00012602,2]
[421651837,1778025049000,-681.21,0.00012602,2]
[421651796,1778025049000,-500.0,0.00012602,2]
[421651818,1778025049000,-560.19,0.00012602,2]
[421651819,1778025049000,-500.0,0.00012602,2]
[421651821,1778025049000,-264.95061832,0.00012602,2]
[421651822,1778025049000,-1080.63,0.00012602,2]
[421651799,1778025049000,-500.0,0.00012602,2]
[421651800,1778025049000,-500.0,0.00012602,2]
[421651798,1778025049000,-1110.23,0.00012602,2]
[421651804,1778025049000,-2397.5806,0.00012602,2]
[421651809,1778025049000,-1056.49,0.00012602,2]
[421651806,1778025049000,-1642.16,0.00012602,2]
[421651807,1778025049000,-976.41,0.00012602,2]
[421651808,1778025049000,-510.44,0.00012602,2]
[421651793,1778025049000,-1277.31,0.00012602,2]
[421651816,1778025049000,-543.64837995,0.00012602,2]
[421651811,1778025049000,-2712.4,0.00012602,2]
[421651813,1778025049000,-500.0,0.00012602,2]
[421651815,1778025049000,-1124.5,0.00012602,2]
[421651812,1778025049000,-510.83929999,0.00012602,2]
[421651805,1778025049000,-646.18,0.00012602,2]
[421651814,1778025049000,-500.0,0.00012602,2]
[421651817,1778025049000,-2715.35,0.00012602,2]
[421651810,1778025049000,-820.57,0.00012602,2]
[421651827,1778025049000,-500.0,0.00012602,2]
[421651846,1778025630000,200.0,0.00014817,120]
[421651848,1778025750000,200.0,0.00015378,120]
[421651849,1778025870000,200.0,0.00014689,120]
[421651872,1778025931000,200.0,0.00019395,120]
[421651883,1778025990000,200.0,0.00018802,120]
[421651906,1778026050000,200.0,0.00019532,120]
[421651951,1778026110000,200.0,0.00019014,120]
[421651982,1778026170000,200.0,0.00020739,120]
[421652030,1778026232000,-808.52906721,9.008e-05,2]
[421652115,1778026238000,-492.08487994,0.000108,2]
[421652117,1778026238000,-1131.16050456,0.000108,2]
[421652114,1778026238000,-333.0,0.00010799,2]
[421652119,1778026238000,-163.31731804,0.000108,2]
[421652113,1778026238000,-300.0,0.00010799,2]
[421652111,1778026238000,-232.70622953,0.000107,2]
[421652109,1778026238000,-181.43864585,0.000107,2]
[421652110,1778026238000,-243.83516412,0.000107,2]
[421652107,1778026238000,-796.90981245,9.191e-05,2]
[421652108,1778026238000,-356.42509019,9.331e-05,2]
[421652106,1778026238000,-555.82785363,9.099e-05,2]
[421652112,1778026238000,-300.0,0.00010799,2]
[421652118,1778026238000,-1180.31623154,0.000108,2]
[421652116,1778026238000,-1020.83295408,0.000108,2]
[421652124,1778026238000,-500.0,0.00010827,2]
[421652131,1778026238000,-500.0,0.00010827,2]
[421652134,1778026238000,-2597.96851266,0.00010828,2]
[421652126,1778026238000,-500.0,0.00010827,2]
[421652128,1778026238000,-500.0,0.00010827,2]
[421652123,1778026238000,-278.27980855,0.00010827,2]
[421652127,1778026238000,-500.0,0.00010827,2]
[421652130,1778026238000,-500.0,0.00010827,2]
[421652133,1778026238000,-478.85715799,0.00010828,2]
[421652125,1778026238000,-191.30574842,0.00010827,2]
[421652135,1778026238000,-4390.78716792,0.00010828,2]
[421652120,1778026238000,-184.93875703,0.000108,2]
[421652121,1778026238000,-154.00366193,0.000108,2]
[421652122,1778026238000,-193.39330129,0.00010827,2]
[421652129,1778026238000,-500.0,0.00010827,2]
[421652132,1778026238000,-263405.15366946,0.00010828,2]
[421652138,1778026241000,-2284.60625744,0.00010828,2]
[421652165,1778026243000,-78198.86173871,0.00010828,2]
[421652163,1778026243000,-3779.46903291,0.00010828,2]
[421652164,1778026243000,-431.83675393,0.00010828,2]
[421652174,1778026247000,-300.0,0.00010828,2]
[421652172,1778026247000,-71863.34736303,0.00010828,2]
[421652173,1778026247000,-38987.42063655,0.00010828,2]
[421652176,1778026343000,152.0,0.00010827,30]
[421652177,1778026344000,152.0,0.00010827,30]
[421652178,1778026345000,152.0,0.00010827,30]
[421652179,1778026346000,152.0,0.00010827,30]
[421652180,1778026346000,152.0,0.00010827,30]
[421652181,1778026347000,152.0,0.00010827,30]
[421652183,1778026348000,152.0,0.00010827,30]
[421652182,1778026348000,152.0,0.00010827,30]
[421652184,1778026349000,152.0,0.0001083,30]
[421652186,1778026350000,152.0,0.0001083,30]
[421652185,1778026350000,152.0,0.0001083,30]
[421652187,1778026351000,152.0,0.0001083,30]
[421652188,1778026352000,152.0,0.0001083,30]
[421652190,1778026353000,152.0,0.00010833,30]
[421652189,1778026353000,152.0,0.0001083,30]
[421652191,1778026354000,152.0,0.00010833,30]
[421652192,1778026355000,152.0,0.00010833,30]
[421652194,1778026627000,152.0,0.00010835,30]
[421652195,1778026628000,152.0,0.00010835,30]
[421652197,1778026701000,152.0,0.00010835,30]
[421652304,1778026837000,-5000.0,0.00010093,2]
[421652305,1778026837000,-3720.24751316,0.00010195,2]
[421652306,1778026837000,-349.29658838,0.00010247,2]
[421652308,1778026837000,-83877.03487772,0.00010728,2]
[421652307,1778026837000,-180.0,0.00010727,2]
[421652309,1778026837000,-301.7,0.00010827,7]
[421652311,1778026837000,-301.7,0.00010827,7]
[421652312,1778026837000,-301.7,0.00010827,7]
[421652314,1778026837000,-301.7,0.00010827,7]
[421652310,1778026837000,-301.7,0.00010827,7]
[421652315,1778026837000,-301.7,0.00010827,7]
[421652316,1778026837000,-301.7,0.00010827,7]
[421652318,1778026837000,-152.0,0.00010827,7]
[421652317,1778026837000,-301.7,0.00010827,7]
[421652320,1778026837000,-500.0,0.00010828,2]
[421652319,1778026837000,-152.0,0.00010827,7]
[421652322,1778026837000,-500.0,0.00010829,2]
[421652321,1778026837000,-500.0,0.00010829,2]
[421652323,1778026837000,-621.01771437,0.00010829,2]
[421652313,1778026837000,-301.7,0.00010827,7]
[421652335,1778026838000,-301.7,0.0001083,7]
[421652331,1778026838000,-500.0,0.00010829,2]
[421652333,1778026838000,-301.7,0.0001083,7]
[421652332,1778026838000,-301.7,0.0001083,7]
[421652330,1778026838000,-500.0,0.00010829,2]
[421652325,1778026838000,-500.0,0.00010829,2]
[421652328,1778026838000,-500.0,0.00010829,2]
[421652327,1778026838000,-192.21765002,0.00010829,2]
[421652326,1778026838000,-500.0,0.00010829,2]
[421652334,1778026838000,-301.7,0.0001083,7]
[421652324,1778026838000,-500.0,0.00010829,2]
[421652329,1778026838000,-500.0,0.00010829,2]
[421652337,1778026838000,-301.7,0.0001083,7]
[421652336,1778026838000,-301.7,0.0001083,7]
[421652338,1778026838000,-301.7,0.0001083,7]
[421652352,1778026838000,-136.55587948,0.00011145,2]
[421652339,1778026838000,-152.0,0.0001083,7]
[421652349,1778026838000,-300.0,0.00011145,2]
[421652350,1778026838000,-300.0,0.00011145,2]
[421652347,1778026838000,-350.86516467,0.00010999,2]
[421652348,1778026838000,-500.0,0.00011145,2]
[421652343,1778026838000,-301.7,0.00010833,7]
[421652351,1778026838000,-300.0,0.00011145,2]
[421652346,1778026838000,-885.62,0.00010959,2]
[421652344,1778026838000,-301.7,0.00010833,7]
[421652342,1778026838000,-301.7,0.00010833,7]
[421652341,1778026838000,-301.7,0.00010833,7]
[421652340,1778026838000,-152.0,0.0001083,7]
[421652345,1778026838000,-11645.1446122,0.00010846,2]
[421652373,1778026974000,152.0,0.00010832,30]
[421652374,1778026975000,152.0,0.00010835,30]
[421652376,1778027059000,152.0,0.00010835,30]
[421652384,1778027182000,152.0,0.00010833,30]
[421652399,1778027377000,152.0,0.00010833,30]
[421652420,1778027432000,-561.85557731,0.00010469,2]
[421652431,1778027433000,-2060.51052112,0.00010469,2]
[421652443,1778027433000,-500.0,0.00010627,2]
[421652441,1778027433000,-500.0,0.00010627,2]
[421652447,1778027433000,-373.83201884,0.00010627,2]
[421652445,1778027433000,-500.0,0.00010627,2]
[421652435,1778027433000,-500.0,0.00010627,2]
[421652438,1778027433000,-500.0,0.00010627,2]
[421652457,1778027433000,-478.78534887,0.00010627,2]
[421652433,1778027433000,-366.35844473,0.00010496,2]
[421652449,1778027433000,-500.0,0.00010627,2]
[421652451,1778027433000,-465.80196111,0.00010627,2]
[421652453,1778027433000,-300.0,0.00010627,2]
[421652455,1778027433000,-500.0,0.00010627,2]
[421652459,1778027433000,-500.0,0.00010627,2]
[421652439,1778027433000,-500.0,0.00010627,2]
[421652460,1778027433000,-454.95876189,0.00010627,2]
[421652635,1778027439000,-500.0,0.00010959,2]
[421652622,1778027439000,-500.0,0.00010838,2]
[421652623,1778027439000,-600.0,0.00010839,2]
[421652618,1778027439000,-300.0,0.00010838,2]
[421652620,1778027439000,-300.0,0.00010838,2]
[421652604,1778027439000,-300.0,0.00010838,2]
[421652612,1778027439000,-300.0,0.00010838,2]
[421652614,1778027439000,-300.0,0.00010838,2]
[421652637,1778027439000,-500.0,0.00010959,2]
[421652610,1778027439000,-300.0,0.00010838,2]
[421652598,1778027439000,-300.0,0.00010838,2]
[421652602,1778027439000,-300.0,0.00010838,2]
[421652616,1778027439000,-300.0,0.00010838,2]
[421652626,1778027439000,-152.0,0.00010847,7]
[421652628,1778027439000,-500.0,0.00010959,2]
[421652632,1778027439000,-500.0,0.00010959,2]
[421652642,1778027439000,-537.6845,0.00011815,2]
[421652639,1778027439000,-312.21828434,0.00010959,2]
[421652630,1778027439000,-164.3828994,0.00010959,2]
[421652633,1778027439000,-500.0,0.00010959,2]
[421652646,1778027439000,-151.0,0.00011815,2]
[421652645,1778027439000,-151.0,0.00011815,2]
[421652644,1778027439000,-151.0,0.00011815,2]
[421652648,1778027439000,-1957.856,0.00011815,2]
[421652647,1778027439000,-152.35572714,0.00011815,2]
[421652649,1778027439000,-557.5788265,0.0001187,2]
[421652650,1778027439000,-2030.296672,0.0001187,2]
[421652608,1778027439000,-300.0,0.00010838,2]
[421652641,1778027439000,-179.0,0.00011781,3]
[421652606,1778027439000,-300.0,0.00010838,2]
[421652551,1778027439000,-500.0,0.00010627,2]
[421652596,1778027439000,-300.0,0.00010838,2]
[421652549,1778027439000,-500.0,0.00010627,2]
[421652553,1778027439000,-500.0,0.00010627,2]
[421652554,1778027439000,-500.0,0.00010627,2]
[421652556,1778027439000,-500.0,0.00010627,2]
[421652564,1778027439000,-500.0,0.00010627,2]
[421652560,1778027439000,-500.0,0.00010627,2]
[421652658,1778027439000,-2264.10087163,0.00012035,2]
[421652558,1778027439000,-500.0,0.00010627,2]
[421652567,1778027439000,-500.0,0.00010627,2]
[421652568,1778027439000,-500.0,0.00010627,2]
[421652562,1778027439000,-530.69185656,0.00010627,2]
[421652565,1778027439000,-454.62188576,0.00010627,2]
[421652571,1778027439000,-500.0,0.00010627,2]
[421652600,1778027439000,-300.0,0.00010838,2]
[421652569,1778027439000,-500.0,0.00010627,2]
[421652575,1778027439000,-593.24998173,0.00010627,2]
[421652577,1778027439000,-500.0,0.00010627,2]
[421652584,1778027439000,-152.0,0.00010829,7]
[421652578,1778027439000,-590.24767891,0.00010627,2]
[421652547,1778027439000,-45.04123811,0.00010627,2]
[421652582,1778027439000,-306605.03776064,0.00010628,2]
[421652587,1778027439000,-152.0,0.00010832,7]
[421652580,1778027439000,-439.06521334,0.00010627,2]
[421652589,1778027439000,-152.0,0.00010832,7]
[421652586,1778027439000,-152.0,0.00010829,7]
[421652591,1778027439000,-152.0,0.00010836,7]
[421652593,1778027439000,-300.0,0.00010838,2]
[421652594,1778027439000,-300.0,0.00010838,2]
[421652573,1778027439000,-382.67045675,0.00010627,2]
[421652651,1778027439000,-720.0,0.00011923,2]
[421652701,1778027439000,-500.0,0.00012328,2]
[421652660,1778027439000,-161.56332863,0.00012209,2]
[421652683,1778027439000,-500.0,0.00012328,2]
[421652680,1778027439000,-500.0,0.00012328,2]
[421652690,1778027439000,-500.0,0.00012328,2]
[421652691,1778027439000,-500.0,0.00012328,2]
[421652702,1778027439000,-500.0,0.00012328,2]
[421652692,1778027439000,-500.0,0.00012328,2]
[421652693,1778027439000,-500.0,0.00012328,2]
[421652695,1778027439000,-500.0,0.00012328,2]
[421652689,1778027439000,-500.0,0.00012328,2]
[421652700,1778027439000,-500.0,0.00012328,2]
[421652694,1778027439000,-984.5,0.00012328,2]
[421652696,1778027439000,-500.0,0.00012328,2]
[421652698,1778027439000,-151.0,0.00012328,2]
[421652684,1778027439000,-1100.59,0.00012328,2]
[421652699,1778027439000,-500.0,0.00012328,2]
[421652703,1778027439000,-668.07,0.00012328,2]
[421652705,1778027439000,-500.0,0.00012328,2]
[421652704,1778027439000,-1113.77,0.00012328,2]
[421652715,1778027439000,-500.0,0.00012328,2]
[421652706,1778027439000,-518.98,0.00012328,2]
[421652709,1778027439000,-500.0,0.00012328,2]
[421652708,1778027439000,-500.0,0.00012328,2]
[421652713,1778027439000,-500.0,0.00012328,2]
[421652710,1778027439000,-1105.4,0.00012328,2]
[421652711,1778027439000,-2105.93,0.00012328,2]
[421652707,1778027439000,-500.0,0.00012328,2]
[421652712,1778027439000,-588.37,0.00012328,2]
[421652659,1778027439000,-160.0,0.00012209,2]
[421652697,1778027439000,-500.0,0.00012328,2]
[421652678,1778027439000,-500.0,0.00012328,2]
[421652714,1778027439000,-500.0,0.00012328,2]
[421652679,1778027439000,-560.66,0.00012328,2]
[421652652,1778027439000,-578.20924308,0.00011925,2]
[421652653,1778027439000,-2105.41764886,0.00011925,2]
[421652656,1778027439000,-152.0,0.00012028,2]
[421652655,1778027439000,-2183.31810187,0.0001198,2]
[421652657,1778027439000,-621.78829552,0.00012035,2]
[421652654,1778027439000,-599.60298507,0.0001198,2]
[421652672,1778027439000,-2458.42291,0.00012328,2]
[421652662,1778027439000,-160.0,0.00012209,2]
[421652673,1778027439000,-531.07,0.00012328,2]
[421652674,1778027439000,-500.0,0.00012328,2]
[421652661,1778027439000,-160.0,0.00012209,2]
[421652663,1778027439000,-2202.0,0.00012258,2]
[421652664,1778027439000,-646.0,0.00012258,2]
[421652665,1778027439000,-223.042,0.0001226,2]
[421652685,1778027439000,-500.0,0.00012328,2]
[421652667,1778027439000,-741.0,0.00012289,2]
[421652668,1778027439000,-185.0,0.00012289,2]
[421652681,1778027439000,-500.0,0.00012328,2]
[421652686,1778027439000,-520.23220228,0.00012328,2]
[421652676,1778027439000,-500.0,0.00012328,2]
[421652682,1778027439000,-500.0,0.00012328,2]
[421652687,1778027439000,-500.0,0.00012328,2]
[421652688,1778027439000,-500.0,0.00012328,2]
[421652677,1778027439000,-642.59,0.00012328,2]
[421652669,1778027439000,-442.0,0.00012289,2]
[421652671,1778027439000,-2471.7193,0.00012328,2]
[421652666,1778027439000,-263.27,0.00012264,2]
[421652670,1778027439000,-1078.5613,0.00012328,2]
[421652675,1778027439000,-500.0,0.00012328,2]
[421652757,1778027440000,-264.94283226,0.00012328,2]
[421652758,1778027440000,-990.57,0.00012328,2]
[421652760,1778027440000,-500.0,0.00012328,2]
[421652755,1778027440000,-500.0,0.00012328,2]
[421652749,1778027440000,-507.99485253,0.00012328,2]
[421652754,1778027440000,-535.71,0.00012328,2]
[421652752,1778027440000,-2489.07,0.00012328,2]
[421652751,1778027440000,-1385.74,0.00012328,2]
[421652753,1778027440000,-500.0,0.00012328,2]
[421652756,1778027440000,-777.51,0.00012328,2]
[421652750,1778027440000,-500.0,0.00012328,2]
[421652759,1778027440000,-500.0,0.00012328,2]
[421652765,1778027440000,-1867.86,0.00012328,2]
[421652762,1778027440000,-504.33,0.00012328,2]
[421652763,1778027440000,-500.0,0.00012328,2]
[421652768,1778027440000,-2124.11,0.00012328,2]
[421652773,1778027440000,-2239.91,0.00012328,2]
[421652771,1778027440000,-857.38,0.00012328,2]
[421652764,1778027440000,-500.0,0.00012328,2]
[421652772,1778027440000,-6598.5,0.00012328,2]
[421652769,1778027440000,-7166.69,0.00012328,2]
[421652766,1778027440000,-225.44926103,0.00012328,2]
[421652770,1778027440000,-2409.17,0.00012328,2]
[421652774,1778027440000,-1482.96,0.00012328,2]
[421652746,1778027440000,-2486.36,0.00012328,2]
[421652761,1778027440000,-500.0,0.00012328,2]
[421652745,1778027440000,-500.0,0.00012328,2]
[421652729,1778027440000,-1170.86,0.00012328,2]
[421652741,1778027440000,-591.03,0.00012328,2]
[421652716,1778027440000,-537.06,0.00012328,2]
[421652718,1778027440000,-500.0,0.00012328,2]
[421652719,1778027440000,-655.21,0.00012328,2]
[421652717,1778027440000,-557.26,0.00012328,2]
[421652720,1778027440000,-2344.07,0.00012328,2]
[421652722,1778027440000,-500.0,0.00012328,2]
[421652721,1778027440000,-652.36,0.00012328,2]
[421652734,1778027440000,-500.0,0.00012328,2]
[421652735,1778027440000,-500.0,0.00012328,2]
[421652732,1778027440000,-500.0,0.00012328,2]
[421652723,1778027440000,-500.0,0.00012328,2]
[421652727,1778027440000,-686.64,0.00012328,2]
[421652740,1778027440000,-752.19,0.00012328,2]
[421652725,1778027440000,-500.0,0.00012328,2]
[421652730,1778027440000,-500.0,0.00012328,2]
[421652728,1778027440000,-1017.71,0.00012328,2]
[421652731,1778027440000,-592.34,0.00012328,2]
[421652737,1778027440000,-501.29,0.00012328,2]
[421652736,1778027440000,-500.0,0.00012328,2]
[421652748,1778027440000,-500.0,0.00012328,2]
[421652742,1778027440000,-500.0,0.00012328,2]
[421652744,1778027440000,-1192.89,0.00012328,2]
[421652739,1778027440000,-500.0,0.00012328,2]
[421652743,1778027440000,-1505.31,0.00012328,2]
[421652738,1778027440000,-500.0,0.00012328,2]
[421652747,1778027440000,-500.0,0.00012328,2]
[421652767,1778027440000,-2029.03,0.00012328,2]
[421652775,1778027440000,-624.44,0.00012328,2]
[421652733,1778027440000,-500.0,0.00012328,2]
[421652785,1778027440000,-500.0,0.00012328,2]
[421652808,1778027440000,-4611.15,0.00012328,2]
[421652809,1778027440000,-1655.21,0.00012328,2]
[421652812,1778027440000,-500.0,0.00012328,2]
[421652819,1778027440000,-2357.37,0.00012328,2]
[421652817,1778027440000,-500.0,0.00012328,2]
[421652811,1778027440000,-2004.88,0.00012328,2]
[421652813,1778027440000,-500.0,0.00012328,2]
[421652816,1778027440000,-527.26,0.00012328,2]
[421652822,1778027440000,-1616.44,0.00012328,2]
[421652818,1778027440000,-964.64,0.00012328,2]
[421652823,1778027440000,-500.0,0.00012328,2]
[421652814,1778027440000,-500.0,0.00012328,2]
[421652804,1778027440000,-1348.96,0.00012328,2]
[421652815,1778027440000,-500.0,0.00012328,2]
[421652825,1778027440000,-35455.74,0.00012328,2]
[421652834,1778027440000,-1015.13,0.00012328,2]
[421652826,1778027440000,-1433.71,0.00012328,2]
[421652824,1778027440000,-1324.57,0.00012328,2]
[421652829,1778027440000,-672.0,0.00012328,2]
[421652832,1778027440000,-2055.49,0.00012328,2]
[421652830,1778027440000,-6870.36,0.00012328,2]
[421652827,1778027440000,-1514.63,0.00012328,2]
[421652828,1778027440000,-1030.79,0.00012328,2]
[421652833,1778027440000,-627.19,0.00012328,2]
[421652831,1778027440000,-2887.49,0.00012328,2]
[421652784,1778027440000,-500.0,0.00012328,2]
[421652821,1778027440000,-500.0,0.00012328,2]
[421652810,1778027440000,-516.69,0.00012328,2]
[421652820,1778027440000,-3769.99,0.00012328,2]
[421652802,1778027440000,-500.0,0.00012328,2]
[421652781,1778027440000,-500.0,0.00012328,2]
[421652803,1778027440000,-500.0,0.00012328,2]
[421652776,1778027440000,-537.2,0.00012328,2]
[421652778,1778027440000,-597.11,0.00012328,2]
[421652779,1778027440000,-758.03,0.00012328,2]
[421652777,1778027440000,-500.0,0.00012328,2]
[421652782,1778027440000,-500.0,0.00012328,2]
[421652783,1778027440000,-342.55,0.00012328,2]
[421652786,1778027440000,-741.0,0.00012328,2]
[421652789,1778027440000,-2669.83,0.00012328,2]
[421652791,1778027440000,-341.32424228,0.00012328,2]
[421652788,1778027440000,-500.0,0.00012328,2]
[421652797,1778027440000,-500.0,0.00012328,2]
[421652780,1778027440000,-931.39,0.00012328,2]
[421652798,1778027440000,-500.0,0.00012328,2]
[421652805,1778027440000,-500.0,0.00012328,2]
[421652806,1778027440000,-519.42,0.00012328,2]
[421652807,1778027440000,-500.0,0.00012328,2]
[421652801,1778027440000,-1903.44,0.00012328,2]
[421652799,1778027440000,-726.82,0.00012328,2]
[421652795,1778027440000,-895.04,0.00012328,2]
[421652800,1778027440000,-6026.71,0.00012328,2]
[421652792,1778027440000,-500.0,0.00012328,2]
[421652793,1778027440000,-2154.0,0.00012328,2]
[421652790,1778027440000,-2229.47,0.00012328,2]
[421652794,1778027440000,-2485.54,0.00012328,2]
[421652796,1778027440000,-2334.3,0.00012328,2]
[421652887,1778027441000,-500.0,0.00012602,2]
[421652876,1778027441000,-500.0,0.00012602,2]
[421652885,1778027441000,-500.0,0.00012602,2]
[421652886,1778027441000,-500.0,0.00012602,2]
[421652877,1778027441000,-500.0,0.00012602,2]
[421652864,1778027441000,-531.07,0.00012602,2]
[421652870,1778027441000,-560.66,0.00012602,2]
[421652871,1778027441000,-500.0,0.00012602,2]
[421652865,1778027441000,-500.0,0.00012602,2]
[421652863,1778027441000,-2471.7193,0.00012602,2]
[421652875,1778027441000,-1100.59,0.00012602,2]
[421652878,1778027441000,-500.0,0.00012602,2]
[421652872,1778027441000,-500.0,0.00012602,2]
[421652888,1778027441000,-500.0,0.00012602,2]
[421652892,1778027441000,-500.0,0.00012602,2]
[421652880,1778027441000,-500.0,0.00012602,2]
[421652884,1778027441000,-984.5,0.00012602,2]
[421652879,1778027441000,-461.51092352,0.00012602,2]
[421652883,1778027441000,-500.0,0.00012602,2]
[421652882,1778027441000,-500.0,0.00012602,2]
[421652890,1778027441000,-500.0,0.00012602,2]
[421652889,1778027441000,-500.0,0.00012602,2]
[421652901,1778027441000,-1105.4,0.00012602,2]
[421652903,1778027441000,-588.37,0.00012602,2]
[421652900,1778027441000,-500.0,0.00012602,2]
[421652902,1778027441000,-2105.93,0.00012602,2]
[421652899,1778027441000,-500.0,0.00012602,2]
[421652896,1778027441000,-500.0,0.00012602,2]